fUSD/lending_fUSD_20260628
["ID","MTS","AMOUNT","RATE_DAILY","PERIOD"]
[426571575,1782608831000,-152.0,0.00021,2]
[426571579,1782608831000,-154.0,0.00022,2]
[426571577,1782608831000,-444.87826676,0.00021466,2]
[426571578,1782608831000,-158.0,0.00022,2]
[426571580,1782608831000,-382.00349338,0.00022,2]
[426571576,1782608831000,-154.0,0.00021,2]
[426571573,1782608831000,-152.0,0.0002,2]
[426571582,1782608844000,-77.84558562,0.00022366,2]
[426571581,1782608844000,-86.28584487,0.00022,2]
[426571585,1782608846000,-13.13074274,0.00022456,2]
[426571584,1782608846000,-163.83,0.00022456,2]
[426571583,1782608846000,-98.71062015,0.00022366,2]
[426571599,1782608968000,-154.0,0.00024,2]
[426571586,1782608968000,-176.55620577,0.00022366,2]
[426571587,1782608968000,-1249.30495096,0.00022456,2]
[426571588,1782608968000,-783.27,0.00022466,2]
[426571589,1782608968000,-411.0,0.00022466,2]
[426571590,1782608968000,-412.0,0.00022466,2]
[426571592,1782608968000,-160.0,0.00022511,2]
[426571591,1782608968000,-403.0,0.00022466,2]
[426571593,1782608968000,-160.96272128,0.00022954,2]
[426571596,1782608968000,-1318.67763221,0.00023255,2]
[426571595,1782608968000,-154.0,0.00023,2]
[426571597,1782608968000,-186.32951408,0.00023255,2]
[426571598,1782608968000,-173.79,0.00023456,30]
[426571600,1782608968000,-2318.5563906,0.00024255,2]
[426571594,1782608968000,-680.0671291,0.00023,2]
[426571602,1782609031000,-151.0,0.00017551,2]
[426571603,1782609031000,-151.0,0.00017551,2]
[426571605,1782609031000,-304.41802208,0.00024255,2]
[426571606,1782609031000,-291.32334823,0.00024255,2]
[426571604,1782609031000,-183.73152602,0.0002314,2]
[426571643,1782609038000,-173.79,0.00025102,30]
[426571656,1782609038000,-398.0,0.00025151,2]
[426571653,1782609038000,-400.0,0.00025151,2]
[426571652,1782609038000,-410.0,0.00025151,2]
[426571649,1782609038000,-406.0,0.00025151,2]
[426571645,1782609038000,-401.0,0.0002515,2]
[426571648,1782609038000,-402.0,0.00025151,2]
[426571647,1782609038000,-1000.0,0.0002515,2]
[426571650,1782609038000,-152.0,0.00025151,2]
[426571651,1782609038000,-408.0,0.00025151,2]
[426571646,1782609038000,-406.0,0.0002515,2]
[426571644,1782609038000,-410.0,0.0002515,2]
[426571654,1782609038000,-1775.0,0.00025151,2]
[426571640,1782609038000,-1016.59,0.00024844,2]
[426571637,1782609038000,-408.0,0.00024678,2]
[426571638,1782609038000,-407.0,0.00024716,2]
[426571639,1782609038000,-398.0,0.00024829,2]
[426571641,1782609038000,-447.87,0.00024878,2]
[426571636,1782609038000,-204.61701573,0.00024511,2]
[426571634,1782609038000,-314.51,0.0002444,2]
[426571635,1782609038000,-164.04,0.00024452,2]
[426571633,1782609038000,-175.91,0.00024419,2]
[426571631,1782609038000,-173.79,0.00024279,30]
[426571632,1782609038000,-13874.9194131,0.00024366,2]
[426571630,1782609038000,-2085.70223909,0.00024255,2]
[426571642,1782609038000,-168.0,0.00025,2]
[426571655,1782609038000,-1779.0,0.00025151,2]
[426571672,1782609038000,-500.0,0.0002551,2]
[426571657,1782609038000,-1778.0,0.00025151,2]
[426571681,1782609038000,-636.69891845,0.00025511,2]
[426571685,1782609038000,-837.57754225,0.00025511,2]
[426571683,1782609038000,-3997.94078069,0.00025511,2]
[426571682,1782609038000,-3058.46808606,0.00025511,2]
[426571679,1782609038000,-1554.62878688,0.00025511,2]
[426571680,1782609038000,-475.79899238,0.00025511,2]
[426571675,1782609038000,-500.0,0.0002551,2]
[426571674,1782609038000,-414.0538708,0.0002551,2]
[426571677,1782609038000,-500.0,0.0002551,2]
[426571669,1782609038000,-741.28832397,0.00025411,2]
[426571673,1782609038000,-174.83700929,0.0002551,2]
[426571671,1782609038000,-500.0,0.0002551,2]
[426571684,1782609038000,-356.88380142,0.00025511,2]
[426571658,1782609038000,-1793.0,0.00025151,2]
[426571676,1782609038000,-611.7690061,0.0002551,2]
[426571678,1782609038000,-18029.92816804,0.00025511,2]
[426571666,1782609038000,-507.28714995,0.00025303,2]
[426571668,1782609038000,-1440.37125764,0.00025411,2]
[426571667,1782609038000,-408.0,0.00025303,2]
[426571662,1782609038000,-1832.0,0.00025151,2]
[426571664,1782609038000,-1810.0,0.00025154,2]
[426571661,1782609038000,-1820.0,0.00025151,2]
[426571663,1782609038000,-1817.0,0.00025151,2]
[426571665,1782609038000,-1801.0,0.00025201,2]
[426571659,1782609038000,-543.3147112,0.00025151,2]
[426571660,1782609038000,-399.0,0.00025151,2]
[426571670,1782609038000,-368.888768,0.00025431,2]
[426571698,1782609043000,-899.01215098,0.00023366,2]
[426571700,1782609043000,-2545.55523368,0.00025511,2]
[426571699,1782609043000,-166.86983135,0.00024255,2]
[426571701,1782609043000,-4839.34083007,0.00025511,2]
[426571697,1782609043000,-1819.80481955,0.00023366,2]
[426571707,1782609048000,-8551.52658401,0.00025511,2]
[426571706,1782609048000,-891.78999196,0.00025511,2]
[426571705,1782609048000,-10037.38538355,0.00025511,2]
[426571704,1782609048000,-631.6,0.00025511,2]
[426571717,1782609049000,-150.0,0.00025932,7]
[426571711,1782609049000,-597.141295,0.00025511,2]
[426571709,1782609049000,-313501.2948619,0.00025511,2]
[426571716,1782609049000,-150.0,0.00025932,7]
[426571712,1782609049000,-3910.19,0.0002589,2]
[426571715,1782609049000,-150.0,0.00025932,7]
[426571714,1782609049000,-173.79,0.00025925,30]
[426571708,1782609049000,-13160.55035806,0.00025511,2]
[426571710,1782609049000,-327.4969939,0.00025511,2]
[426571718,1782609049000,-150.0,0.00025932,7]
[426571713,1782609049000,-741.28832397,0.00025921,2]
[426571725,1782609049000,-401.0,0.00026109,2]
[426571719,1782609049000,-150.0,0.00025932,7]
[426571729,1782609049000,-1533.92442278,0.00026151,2]
[426571728,1782609049000,-20484.87400499,0.00026151,2]
[426571724,1782609049000,-412.0,0.00026109,2]
[426571726,1782609049000,-151.0,0.00026148,7]
[426571727,1782609049000,-151.0,0.00026148,7]
[426571723,1782609049000,-403.0,0.00026109,2]
[426571721,1782609049000,-4858.32943944,0.00026109,2]
[426571720,1782609049000,-245.45306983,0.00025932,7]
[426571722,1782609049000,-413.0,0.00026109,2]
[426571731,1782609099000,170.98,0.00025606,120]
[426571733,1782609128000,500.0,0.00037288,120]
[426571732,1782609128000,500.0,0.00037288,120]
[426571735,1782609201000,800.95,0.00037288,120]
[426571734,1782609201000,800.95,0.00037288,120]
[426571736,1782609202000,800.95,0.00037288,120]
[426571738,1782609202000,800.95,0.00037288,120]
[426571737,1782609202000,800.95,0.00037288,120]
[426571740,1782609203000,800.95,0.00037288,120]
[426571739,1782609203000,800.95,0.00037288,120]
[426571742,1782609203000,800.95,0.00037288,120]
[426571741,1782609203000,800.95,0.00037288,120]
[426571745,1782609204000,800.95,0.00037288,120]
[426571744,1782609204000,800.95,0.00037288,120]
[426571743,1782609204000,800.95,0.00037288,120]
[426571749,1782609205000,800.95,0.00037288,120]
[426571748,1782609205000,800.95,0.00037288,120]
[426571747,1782609205000,800.95,0.00037288,120]
[426571746,1782609205000,800.95,0.00037288,120]
[426571752,1782609206000,800.95,0.00037288,120]
[426571751,1782609206000,800.95,0.00037288,120]
[426571750,1782609206000,800.95,0.00037288,120]
[426571755,1782609207000,800.95,0.00037288,120]
[426571754,1782609207000,800.95,0.00037288,120]
[426571753,1782609207000,800.95,0.00037288,120]
[426571756,1782609208000,800.95,0.00037288,120]
[426571757,1782609208000,800.95173293,0.00037288,120]
[426571758,1782609241000,355071.727,0.00026064,120]
[426571759,1782609327000,214.0,0.0001188,2]
[426571760,1782609328000,214.0,0.00013205,2]
[426571761,1782609329000,216.41136177,0.00013865,2]
[426571762,1782609391000,1977.4589,0.00026051,120]
[426571764,1782609900000,-151.0,0.00017551,2]
[426571766,1782609954000,-151.0,0.00017551,2]
[426571767,1782610007000,-281.66494905,0.00017708,2]
[426571769,1782610029000,-107.64447875,0.00018048,2]
[426571768,1782610029000,-150.0,0.00017865,2]
[426571773,1782610030000,-300.0,0.00019306,2]
[426571774,1782610030000,-42.69027907,0.00019479,2]
[426571772,1782610030000,-250.0,0.00019306,2]
[426571771,1782610030000,-193.0,0.00019306,2]
[426571770,1782610030000,-108.35552125,0.00018048,2]
[426571775,1782610037000,-260.52820505,0.00019479,2]
[426571777,1782610037000,-160.0,0.0002343,2]
[426571776,1782610037000,-159.55,0.00019846,2]
[426571778,1782610037000,-399.0,0.00023733,2]
[426571779,1782610037000,-404.0,0.00023875,2]
[426571781,1782610037000,-267.86929178,0.00024071,2]
[426571780,1782610037000,-662.57076827,0.00023961,2]
[426571783,1782610061000,197.42,0.00031268,120]
[426571782,1782610061000,197.42,0.00028141,120]
[426571785,1782610105000,-625.496556,0.00014,2]
[426571786,1782610105000,-196.87554933,0.00019479,7]
[426571787,1782610105000,-196.87554933,0.00019869,7]
[426571789,1782610105000,-196.87554933,0.00021037,7]
[426571788,1782610105000,-196.87554933,0.00020453,7]
[426571790,1782610105000,-196.87554933,0.00021816,7]
[426571792,1782610105000,-970.40063883,0.0002395,2]
[426571793,1782610105000,-144.13070822,0.00024071,2]
[426571794,1782610105000,-402.0,0.00024351,2]
[426571795,1782610105000,-2223.00881477,0.00024766,2]
[426571797,1782610105000,-568.97357434,0.00024857,2]
[426571796,1782610105000,-1896.66118523,0.00024766,2]
[426571791,1782610105000,-2129.66585917,0.0002395,2]
[426571798,1782610201000,202.66160292,0.0003729,120]
[426571799,1782610204000,310.0,0.0003729,120]
[426571801,1782610205000,234.43234042,0.0003729,120]
[426571800,1782610205000,500.0,0.0003729,120]
[426571803,1782610205000,173.35364978,0.00024879,120]
[426571802,1782610205000,500.0,0.00027342,120]
[426571804,1782610208000,282.47,0.0003729,120]
[426571805,1782610209000,189.10015997,0.0003729,120]
[426571806,1782610211000,174.80760639,0.0003729,120]
[426571807,1782610212000,633.6064513,0.0003729,120]
[426571808,1782610214000,297.0,0.000301,120]
[426571809,1782610215000,204.756202,0.0003729,120]
[426571810,1782610216000,157.22534506,0.0003729,120]
[426571811,1782610218000,188.72448426,0.0003729,120]
[426571812,1782610219000,707.60477309,0.0003729,120]
[426571813,1782610220000,217.37110281,0.0003729,120]
[426571816,1782610222000,199.50597899,0.0003729,120]
[426571815,1782610222000,648.02489762,0.0003729,120]
[426571817,1782610225000,216.49026878,0.0003729,120]
[426571818,1782610225000,213.39232499,0.0003729,120]
[426571819,1782610225000,157.928161,0.00014,2]
[426571822,1782610229000,269.77,0.00023132,3]
[426571859,1782610232000,-150.0,0.00025448,2]
[426571860,1782610232000,-3644.244416,0.00025482,2]
[426571857,1782610232000,-1554.628787,0.00025419,2]
[426571855,1782610232000,-1059.26,0.00025287,2]
[426571856,1782610232000,-1423.53,0.00025288,2]
[426571853,1782610232000,-1288.15,0.00025262,2]
[426571854,1782610232000,-152.41,0.00025282,2]
[426571847,1782610232000,-160.0,0.00024977,2]
[426571851,1782610232000,-150.0,0.00025198,2]
[426571848,1782610232000,-197.42,0.00025015,2]
[426571852,1782610232000,-5000.0,0.00025219,2]
[426571839,1782610232000,-312.27016892,0.00024902,2]
[426571850,1782610232000,-591.27,0.00025182,2]
[426571845,1782610232000,-5622.39,0.00024961,7]
[426571846,1782610232000,-3190.02,0.00024974,2]
[426571844,1782610232000,-578.0,0.0002496,2]
[426571843,1782610232000,-408.0,0.0002496,2]
[426571842,1782610232000,-409.0,0.00024955,2]
[426571841,1782610232000,-410.0,0.00024948,2]
[426571840,1782610232000,-406.0,0.00024914,2]
[426571837,1782610232000,-5622.39,0.00024174,2]
[426571838,1782610232000,-61.97642566,0.00024857,2]
[426571863,1782610232000,-56500.7798828,0.00025491,2]
[426571849,1782610232000,-2490.85,0.00025122,2]
[426571861,1782610232000,-150.0,0.0002549,2]
[426571867,1782610232000,-150.0,0.00025675,7]
[426571862,1782610232000,-3058.4680862,0.00025491,2]
[426571885,1782610232000,-2206.63792346,0.00025786,2]
[426571886,1782610232000,-700.19088126,0.00025786,2]
[426571884,1782610232000,-496.2484482,0.00025786,2]
[426571883,1782610232000,-535.48704977,0.00025786,2]
[426571881,1782610232000,-299.99,0.00025786,12]
[426571880,1782610232000,-9999.99,0.00025786,2]
[426571882,1782610232000,-14178.41404624,0.00025786,2]
[426571878,1782610232000,-3549.50236458,0.00025786,2]
[426571879,1782610232000,-6450.48763542,0.00025786,2]
[426571877,1782610232000,-1564.48,0.00025786,2]
[426571875,1782610232000,-3759.08,0.00025786,2]
[426571858,1782610232000,-428.044673,0.00025431,2]
[426571874,1782610232000,-4999.99,0.00025786,2]
[426571876,1782610232000,-9999.99,0.00025786,2]
[426571865,1782610232000,-350.0,0.00025576,2]
[426571887,1782610232000,186.92495754,0.0003729,120]
[426571866,1782610232000,-801.99611112,0.0002564,2]
[426571870,1782610232000,-1200.47,0.00025786,2]
[426571864,1782610232000,-500.0,0.0002551,2]
[426571873,1782610232000,-436.61,0.00025786,2]
[426571872,1782610232000,-499.99,0.00025786,2]
[426571869,1782610232000,-350.0,0.00025755,2]
[426571871,1782610232000,-9999.99,0.00025786,2]
[426571868,1782610232000,-152.0,0.00025697,2]
[426571888,1782610235000,312.19463891,0.0003729,120]
[426571891,1782610236000,404.11,0.00031372,120]
[426571890,1782610236000,404.11,0.00031125,120]
[426571892,1782610237000,150.297779,0.0003729,120]
[426571908,1782610238000,-172.64979288,0.00024861,2]
[426571907,1782610238000,205.70016952,0.0003729,120]
[426571910,1782610238000,-170.86727381,0.00025786,2]
[426571912,1782610238000,-515.62307353,0.00025786,2]
[426571914,1782610238000,-3456.46808606,0.00025786,2]
[426571916,1782610238000,-418.49464904,0.00025786,2]
[426571909,1782610238000,-156.48293331,0.00025784,5]
[426572025,1782610239000,218.0,0.0003729,120]
[426572002,1782610239000,326.0,0.0003729,120]
[426571998,1782610239000,232.0,0.0003729,120]
[426572159,1782610240000,159.50767046,0.0003729,120]
[426572150,1782610240000,-1692.9752568,0.00025786,2]
[426572090,1782610240000,-443.905,0.00025786,2]
[426572244,1782610241000,180.01868146,0.0003729,120]
[426572276,1782610242000,500.0,0.0003729,120]
[426572275,1782610242000,500.0,0.0003729,120]
[426572295,1782610243000,-14110.80995592,0.00025786,2]
[426572292,1782610243000,288.4758,0.0003729,120]
[426572293,1782610243000,-400.0,0.00024174,2]
[426572296,1782610243000,-2170.62158657,0.00025786,2]
[426572297,1782610243000,-4772.50684395,0.00025786,2]
[426572301,1782610243000,245.07163534,0.0003729,120]
[426572298,1782610243000,-1362.77662036,0.00025786,2]
[426572299,1782610243000,-1258.29738534,0.00025786,2]
[426572300,1782610243000,-516.77640845,0.00025786,2]
[426572294,1782610243000,-172.64979287,0.00025136,2]
[426572302,1782610245000,444.84243291,0.0003729,120]
[426572315,1782610246000,-801.99611112,0.00025914,2]
[426572314,1782610246000,-568.82951124,0.00025786,2]
[426572316,1782610246000,-1059.26,0.0002592,2]
[426572318,1782610246000,-179.17169087,0.00026125,2]
[426572317,1782610246000,-500.0,0.00026125,2]
[426572320,1782610246000,-500.0,0.0002615,2]
[426572319,1782610246000,-151.0,0.00026148,7]
[426572322,1782610246000,-1000.0,0.00026164,2]
[426572321,1782610246000,-166.57,0.00026163,2]
[426572324,1782610246000,-150.0,0.00026208,2]
[426572323,1782610246000,-801.99611112,0.00026188,2]
[426572335,1782610246000,-500.0,0.00026208,7]
[426572334,1782610246000,-500.0,0.00026208,7]
[426572336,1782610246000,-500.0,0.00026208,7]
[426572327,1782610246000,-71.79272093,0.00026208,7]
[426572337,1782610246000,-384.42431619,0.00026208,7]
[426572333,1782610246000,-500.0,0.00026208,7]
[426572325,1782610246000,-500.0,0.00026208,7]
[426572330,1782610246000,-500.0,0.00026208,7]
[426572331,1782610246000,-500.0,0.00026208,7]
[426572329,1782610246000,-500.0,0.00026208,7]
[426572328,1782610246000,-428.20727907,0.00026208,7]
[426572326,1782610246000,-500.0,0.00026208,7]
[426572332,1782610246000,-500.0,0.00026208,7]
[426572338,1782610247000,162.71700817,0.0003729,120]
[426572343,1782610248000,477.50986295,0.0003729,120]
[426572342,1782610248000,500.0,0.0003729,120]
[426572341,1782610248000,500.0,0.0003729,120]
[426572340,1782610248000,165.18910792,0.0003729,120]
[426572339,1782610248000,230.55365908,0.0003729,120]
[426572344,1782610249000,-172.64979287,0.0002541,2]
[426572346,1782610249000,-115.57568381,0.00026208,7]
[426572345,1782610249000,-1000.0,0.00025814,7]
[426572348,1782610249000,-500.0,0.00026208,7]
[426572347,1782610249000,-500.0,0.00026208,7]
[426572349,1782610249000,-204.60293529,0.00026208,7]
[426572350,1782610249000,-91.24105975,0.00026208,7]
[426572352,1782610253000,189.81069499,0.0003729,120]
[426572351,1782610253000,152.16654055,0.0003729,120]
[426572353,1782610254000,181.39752894,0.0003729,120]
[426572354,1782610254000,829.27559063,0.0003729,120]
[426572355,1782610256000,200.21785662,0.0003729,120]
[426572357,1782610257000,352.63414938,0.0003729,120]
[426572356,1782610257000,288.19500845,0.0003729,120]
[426572358,1782610260000,255.75332152,0.0003729,120]
[426572359,1782610263000,706.37005677,0.000315,120]
[426572360,1782610264000,262.70489733,0.0003729,120]
[426572361,1782610267000,171.39352073,0.0003729,120]
[426572362,1782610272000,178.23160425,0.0003729,120]
[426572364,1782610273000,636.006904,0.0003729,120]
[426572368,1782610276000,300.8069392,0.0003729,120]
[426572369,1782610276000,173.65069149,0.00026591,120]
[426572367,1782610276000,152.0,0.00026591,120]
[426572366,1782610276000,152.0,0.00026591,120]
[426572365,1782610276000,152.0,0.00026591,120]
[426572371,1782610278000,609.2092,0.0003729,120]
[426572372,1782610279000,229.48570509,0.0003729,120]
[426572374,1782610280000,214.29723218,0.0003729,120]
[426572373,1782610280000,1882.2,0.0003729,120]
[426572375,1782610284000,198.73657433,0.0003729,120]
[426572377,1782610289000,328.09075218,0.0003729,120]
[426572379,1782610290000,340.37158901,0.0003729,120]
[426572378,1782610290000,157.56362253,0.0003729,120]
[426572380,1782610291000,245.350659,0.0003729,120]
[426572381,1782610292000,182.22686461,0.0003729,120]
[426572382,1782610295000,182.75635395,0.0003729,120]
[426572383,1782610296000,334.0064356,0.0003729,120]
[426572384,1782610302000,500.0,0.0003729,120]
[426572385,1782610302000,606.17563431,0.0003729,120]
[426572386,1782610302000,293.0831244,0.0003729,120]
[426572387,1782610303000,158.6501955,0.0003729,120]
[426572388,1782610305000,161.3,0.00031506,120]
[426572389,1782610313000,193.49501295,0.0003729,120]
[426572390,1782610316000,303.30941457,0.0003729,120]
[426572391,1782610318000,280.83667416,0.0003729,120]
[426572392,1782610319000,249.14543312,0.0003729,120]
[426572393,1782610320000,166.1093997,0.0003729,120]
[426572394,1782610323000,189.81137654,0.0003729,120]
[426572395,1782610323000,279.13247401,0.0003729,120]
[426572396,1782610330000,243.62949517,0.0003729,120]
[426572397,1782610331000,197.00232256,0.0003729,120]
[426572399,1782610334000,155.77799225,0.0003729,120]
[426572398,1782610334000,499.25475068,0.0003729,120]
[426572400,1782610340000,309.72901798,0.0003729,120]
[426572401,1782610341000,154.16326298,0.0003729,120]
[426572402,1782610342000,157.88658932,0.0003729,120]
[426572404,1782610343000,249.82969698,0.0003729,120]
[426572403,1782610343000,250.87579124,0.0003729,120]
[426572405,1782610344000,214.37809153,0.0003729,120]
[426572406,1782610351000,500.0,0.0003729,120]
[426572407,1782610351000,177.58579177,0.0003729,120]
[426572409,1782610352000,321.13705258,0.0003729,120]
[426572408,1782610352000,160.16002268,0.0003729,120]
[426572410,1782610355000,285.92465771,0.0003729,120]
[426572411,1782610356000,217.49156447,0.0003729,120]
[426572412,1782610358000,508.43613227,0.0003729,120]
[426572413,1782610362000,175.61689547,0.0003729,120]
[426572414,1782610366000,209.80119352,0.0003729,120]
[426572415,1782610367000,182.13600602,0.0003729,120]
[426572416,1782610368000,240.63890041,0.0003729,120]
[426572417,1782610369000,196.35530248,0.0003729,120]
[426572418,1782610369000,200.10194419,0.0003729,120]
[426572419,1782610371000,220.48324322,0.0003729,120]
[426572420,1782610372000,436.999999,0.0003729,120]
[426572421,1782610373000,207.0,0.0003729,120]
[426572422,1782610374000,168.99279909,0.0003729,120]
[426572423,1782610379000,396.75922957,0.0003729,120]
[426572424,1782610381000,308.47621077,0.0003729,120]
[426572427,1782610385000,292.36411676,0.0003729,120]
[426572426,1782610385000,500.0,0.0003729,120]
[426572425,1782610385000,1441.3181,0.0003729,120]
[426572428,1782610388000,500.0,0.0003729,120]
[426572429,1782610389000,499.67319071,0.0003729,120]
[426572430,1782610391000,474.13694402,0.0003729,120]
[426572431,1782610393000,285.57536726,0.0003729,120]
[426572433,1782610394000,280.77781278,0.0003729,120]
[426572432,1782610394000,390.32437475,0.0003729,120]
[426572434,1782610395000,193.39609466,0.0003729,120]
[426572435,1782610397000,186.57769997,0.0003729,120]
[426572437,1782610398000,231.65090068,0.0003729,120]
[426572436,1782610398000,190.64557058,0.0003729,120]
[426572438,1782610399000,169.71109795,0.0003729,120]
[426572439,1782610400000,241.79209639,0.0003729,120]
[426572440,1782610402000,163.6377328,0.0003729,120]
[426572441,1782610402000,293.85880512,0.0003729,120]
[426572443,1782610404000,253.88842449,0.0003729,120]
[426572442,1782610404000,395.33497254,0.0003729,120]
[426572444,1782610405000,203.85374795,0.0003729,120]
[426572445,1782610406000,547.86000921,0.0003729,120]
[426572447,1782610407000,191.13077508,0.0003729,120]
[426572446,1782610407000,500.0,0.0003729,120]
[426572449,1782610408000,199.10936979,0.0003729,120]
[426572448,1782610408000,150.38569405,0.0003729,120]
[426572450,1782610409000,181.34280353,0.0003729,120]
[426572454,1782610410000,224.13992834,0.0003729,120]
[426572453,1782610410000,165.95085679,0.0003729,120]
[426572452,1782610410000,222.47015493,0.0003729,120]
[426572451,1782610410000,558.20584006,0.0003729,120]
[426572455,1782610415000,185.06865159,0.0003729,120]
[426572456,1782610416000,278.88790399,0.0003729,120]
[426572458,1782610420000,213.02303602,0.0003729,120]
[426572457,1782610420000,152.93448211,0.0003729,120]
[426572459,1782610421000,192.10367065,0.0003729,120]
[426572460,1782610426000,524.1821222,0.0003729,120]
[426572461,1782610427000,500.0,0.0003729,120]
[426572462,1782610428000,511.32767018,0.0003729,120]
[426572463,1782610435000,230.52547734,0.0003729,120]
[426572464,1782610440000,11670.6974,0.0002621,120]
[426572465,1782610441000,209.07801201,0.0003729,120]
[426572467,1782610450000,196.5838799,0.0003729,120]
[426572466,1782610450000,184.19806376,0.0003729,120]
[426572468,1782610452000,177.27814852,0.0003729,120]
[426572469,1782610464000,177.94537677,0.0003729,120]
[426572470,1782610466000,6000.0,0.0003729,120]
[426572471,1782610468000,180.70125299,0.0003729,120]
[426572472,1782610470000,238.08262267,0.0003729,120]
[426572473,1782610479000,198.6769129,0.0003729,120]
[426572474,1782610485000,3000.0,0.0003729,120]
[426572476,1782610494000,183.20189278,0.0002,120]
[426572477,1782610496000,197.96628234,0.0003729,120]
[426572478,1782610497000,10000.0,0.0003729,120]
[426572479,1782610498000,192.83567143,0.0003729,120]
[426572480,1782610501000,174.47091741,0.0003729,120]
[426572481,1782610507000,193.72119226,0.0003729,120]
[426572482,1782610513000,191.34397571,0.0003729,120]
[426572483,1782610514000,196028.3536,0.000267,120]
[426572484,1782610515000,12000.0,0.0003729,120]
[426572485,1782610524000,172.82813857,0.0003729,120]
[426572486,1782610528000,12000.0,0.0003729,120]
[426572487,1782610528000,161.99786607,0.0003729,120]
[426572488,1782610539000,2000.0,0.0003729,120]
[426572489,1782610551000,6000.0,0.0003729,120]
[426572490,1782610561000,2500.0,0.0003729,120]
[426572491,1782610568000,150.10082542,0.0003729,120]
[426572492,1782610571000,417518.94,0.0003729,120]
[426572493,1782610572000,6000.0,0.0003729,120]
[426572494,1782610578000,179.24004815,0.0003729,120]
[426572495,1782610583000,6000.0,0.0003729,120]
[426572496,1782610584000,444.66,0.0003729,120]
[426572497,1782610587000,175.9721684,0.0003729,120]
[426572498,1782610595000,1356.23576358,0.0003729,120]
[426572499,1782610600000,189.40365661,0.0003729,120]
[426572500,1782610603000,174.74804377,0.0003729,120]
[426572501,1782610605000,700439.49280542,0.0003729,120]
[426572502,1782610610000,166.43036895,0.0003729,120]
[426572503,1782610613000,184.8535458,0.0003729,120]
[426572504,1782610649000,195.59895824,0.0003729,120]
[426572506,1782610662000,3860.0,0.0003729,120]
[426572505,1782610662000,185.52076448,0.0003729,120]
[426572507,1782610672000,153.3665746,0.0003729,120]
[426572508,1782610673000,163.5375585,0.0003729,120]
[426572509,1782610685000,-515.62307353,0.00020548,2]
[426572510,1782610697000,-189.03662647,0.00020548,2]
[426572511,1782610700000,169.84062792,0.0003729,120]
[426572512,1782610716000,171.98368928,0.00037292,120]
[426572513,1782610750000,-18029.92816804,0.000179,2]
[426572515,1782610763000,189.73255074,0.00037292,120]
[426572514,1782610763000,-475.79899238,0.000179,2]
[426572516,1782610775000,-224.413902,0.000179,2]
[426572518,1782610828000,-151.0,0.00018,2]
[426572519,1782610829000,185.12647503,0.00037292,120]
[426572520,1782610881000,-172.46706979,0.00018,2]
[426572521,1782610935000,-168.740576,0.00018,2]
[426572522,1782610988000,-150.0,0.00020752,2]
[426572523,1782611041000,-354.26424597,0.00020855,2]
[426572525,1782611131000,-150.0,0.00021061,2]
[426572526,1782611131000,-151.0,0.00021219,2]
[426572528,1782611131000,-151.0,0.00021639,2]
[426572529,1782611131000,-151.0,0.00021849,2]
[426572527,1782611131000,-151.0,0.00021429,2]
[426572531,1782611131000,-151.0,0.0002227,2]
[426572530,1782611131000,-151.0,0.00022059,2]
[426572532,1782611131000,-151.0,0.0002248,2]